[Event "Early-Titled-Tuesday-Blitz-January-16-2024"]
[Site "Chess.com"]
[Date "2024.01.16"]
[Round "11"]
[White "Doublekk14"]
[Black "iwanyu"]
[Result "0-1"]
[WhiteElo "2291"]
[BlackElo "2664"]
[TimeControl "180+1"]
[EndTime "10:09:55 PST"]
[Termination "iwanyu won on time"]

1. c4 {[%clk 0:03:00.9]} 1... Nf6 {[%clk 0:02:30.3]} 2. Nc3 {[%clk 0:02:59.1]}
2... g6 {[%clk 0:02:18]} 3. e3 {[%clk 0:02:58.6]} 3... Bg7 {[%clk 0:02:18.3]} 4.
d4 {[%clk 0:02:59]} 4... O-O {[%clk 0:02:19]} 5. Nf3 {[%clk 0:02:59.1]} 5... d5
{[%clk 0:02:18.5]} 6. Be2 {[%clk 0:02:56.6]} 6... c5 {[%clk 0:02:18.5]} 7. O-O
{[%clk 0:02:54.1]} 7... cxd4 {[%clk 0:02:18.7]} 8. exd4 {[%clk 0:02:53.9]} 8...
dxc4 {[%clk 0:02:19.6]} 9. Bxc4 {[%clk 0:02:53.5]} 9... b6 {[%clk 0:02:20.5]}
10. h3 {[%clk 0:02:52.9]} 10... Bb7 {[%clk 0:02:20.4]} 11. Be3 {[%clk
0:02:51.9]} 11... Nc6 {[%clk 0:02:18.6]} 12. Ne5 {[%clk 0:02:50.5]} 12... Na5
{[%clk 0:02:11.6]} 13. Be2 {[%clk 0:02:49.9]} 13... Nd5 {[%clk 0:02:06.9]} 14.
Bf3 {[%clk 0:02:27.6]} 14... Rc8 {[%clk 0:01:50.8]} 15. Rc1 {[%clk 0:02:15.7]}
15... Nxc3 {[%clk 0:01:44]} 16. bxc3 {[%clk 0:02:12.8]} 16... Bxf3 {[%clk
0:01:42.8]} 17. Qxf3 {[%clk 0:02:11.4]} 17... Nc4 {[%clk 0:01:42.1]} 18. Nxc4
{[%clk 0:02:07.5]} 18... Rxc4 {[%clk 0:01:43]} 19. Qb7 {[%clk 0:02:06.5]} 19...
Ra4 {[%clk 0:01:05.6]} 20. Qc6 {[%clk 0:01:53.8]} 20... Qe8 {[%clk 0:00:56.1]}
21. Qd5 {[%clk 0:01:50.3]} 21... b5 {[%clk 0:00:47.6]} 22. Rb1 {[%clk
0:01:47.3]} 22... a6 {[%clk 0:00:45.7]} 23. Rb4 {[%clk 0:01:41.9]} 23... e6
{[%clk 0:00:39.8]} 24. Qb3 {[%clk 0:01:39.6]} 24... Rxb4 {[%clk 0:00:38.6]} 25.
Qxb4 {[%clk 0:01:38.2]} 25... Qc6 {[%clk 0:00:36.3]} 26. Ra1 {[%clk 0:01:22]}
26... Rc8 {[%clk 0:00:22.3]} 27. Bd2 {[%clk 0:01:17]} 27... Bf8 {[%clk
0:00:20.3]} 28. Qb3 {[%clk 0:01:14.6]} 28... Qc4 {[%clk 0:00:20.1]} 29. Qxc4
{[%clk 0:01:02.2]} 29... Rxc4 {[%clk 0:00:21]} 30. Rb1 {[%clk 0:01:02]} 30...
Bd6 {[%clk 0:00:17.7]} 31. Kf1 {[%clk 0:01:00.2]} 31... e5 {[%clk 0:00:17.9]}
32. dxe5 {[%clk 0:00:53.5]} 32... Bxe5 {[%clk 0:00:18.8]} 33. Rb3 {[%clk
0:00:53.4]} 33... Ra4 {[%clk 0:00:16.9]} 34. Rb2 {[%clk 0:00:45.4]} 34... Kf8
{[%clk 0:00:17]} 35. Ke2 {[%clk 0:00:44.9]} 35... Ke7 {[%clk 0:00:17.3]} 36. Kd3
{[%clk 0:00:45.1]} 36... Ke6 {[%clk 0:00:17.8]} 37. Be3 {[%clk 0:00:36]} 37...
Kd5 {[%clk 0:00:17.1]} 38. Kc2 {[%clk 0:00:32.1]} 38... Ra3 {[%clk 0:00:15.2]}
39. Bd2 {[%clk 0:00:30.1]} 39... Kc5 {[%clk 0:00:11.9]} 40. Be3+ {[%clk
0:00:27.3]} 40... Kc4 {[%clk 0:00:12]} 41. Rb4+ {[%clk 0:00:26.5]} 41... Kd5
{[%clk 0:00:12.5]} 42. Bd2 {[%clk 0:00:16.9]} 42... Rxa2+ {[%clk 0:00:12.2]} 43.
Kd3 {[%clk 0:00:14.5]} 43... Ra3 {[%clk 0:00:10.2]} 44. f4 {[%clk 0:00:12.3]}
44... Bg7 {[%clk 0:00:09.2]} 45. g4 {[%clk 0:00:12.3]} 45... f5 {[%clk
0:00:09.3]} 46. gxf5 {[%clk 0:00:07.2]} 46... gxf5 {[%clk 0:00:10.2]} 47. Rb1
{[%clk 0:00:04.5]} 47... Bf6 {[%clk 0:00:08.7]} 48. Rb2 {[%clk 0:00:02.7]} 48...
Ra1 {[%clk 0:00:07.3]} 49. Rb4 {[%clk 0:00:01.6]} 49... Rh1 {[%clk 0:00:07]} 0-1

[Event "Early-Titled-Tuesday-Blitz-January-16-2024"]
[Site "Chess.com"]
[Date "2024.01.16"]
[Round "11"]
[White "dasatcu90"]
[Black "pfalcon1949"]
[Result "1-0"]
[WhiteElo "2268"]
[BlackElo "1991"]
[TimeControl "180+1"]
[EndTime "10:09:55 PST"]
[Termination "dasatcu90 won by checkmate"]

1. d4 {[%clk 0:03:00.9]} 1... Nf6 {[%clk 0:02:59]} 2. Nf3 {[%clk 0:03:01.5]}
2... d5 {[%clk 0:02:58.7]} 3. e3 {[%clk 0:03:01.8]} 3... c5 {[%clk 0:02:57.6]}
4. c4 {[%clk 0:03:01.5]} 4... cxd4 {[%clk 0:02:56.6]} 5. exd4 {[%clk 0:03:01.5]}
5... e6 {[%clk 0:02:56]} 6. Nc3 {[%clk 0:03:01.3]} 6... Be7 {[%clk 0:02:55.2]}
7. Bd3 {[%clk 0:02:58]} 7... dxc4 {[%clk 0:02:54.2]} 8. Bxc4 {[%clk 0:02:58.9]}
8... O-O {[%clk 0:02:54.4]} 9. O-O {[%clk 0:02:58.6]} 9... b6 {[%clk 0:02:55]}
10. d5 {[%clk 0:02:57.1]} 10... Qc7 {[%clk 0:02:24.8]} 11. Bb3 {[%clk
0:02:39.7]} 11... Nxd5 {[%clk 0:02:19.4]} 12. Nxd5 {[%clk 0:02:37.9]} 12... exd5
{[%clk 0:02:18.6]} 13. Bxd5 {[%clk 0:02:31.9]} 13... Bb7 {[%clk 0:02:18.6]} 14.
Bf4 {[%clk 0:02:30.5]} 14... Qc8 {[%clk 0:02:07.3]} 15. Rc1 {[%clk 0:02:27.9]}
15... Nc6 {[%clk 0:01:53.9]} 16. Qa4 {[%clk 0:02:09.9]} 16... Bc5 {[%clk
0:01:27.3]} 17. a3 {[%clk 0:01:32.2]} 17... a5 {[%clk 0:01:24.6]} 18. Rfd1
{[%clk 0:01:29.9]} 18... Ne7 {[%clk 0:01:07.3]} 19. Bxb7 {[%clk 0:01:21.1]}
19... Qxb7 {[%clk 0:01:08.2]} 20. Qb3 {[%clk 0:01:12.2]} 20... a4 {[%clk
0:00:59.8]} 21. Qb5 {[%clk 0:01:04.2]} 21... Ra5 {[%clk 0:00:55.2]} 22. Qd3
{[%clk 0:00:58.3]} 22... Ng6 {[%clk 0:00:50.7]} 23. Bd2 {[%clk 0:00:52.6]} 23...
Ra7 {[%clk 0:00:49.9]} 24. Bc3 {[%clk 0:00:41.1]} 24... h6 {[%clk 0:00:49]} 25.
Qf5 {[%clk 0:00:33.7]} 25... Qe7 {[%clk 0:00:43.6]} 26. Re1 {[%clk 0:00:27.1]}
26... Nh4 {[%clk 0:00:38.4]} 27. Rxe7 {[%clk 0:00:21.7]} 27... Nxf5 {[%clk
0:00:36.8]} 28. Rxa7 {[%clk 0:00:21.8]} 28... Re8 {[%clk 0:00:31.9]} 29. h3
{[%clk 0:00:21.4]} 29... h5 {[%clk 0:00:30.7]} 30. Kf1 {[%clk 0:00:21.1]} 30...
h4 {[%clk 0:00:30.3]} 31. Rxa4 {[%clk 0:00:18.1]} 31... f6 {[%clk 0:00:26.6]}
32. Nxh4 {[%clk 0:00:17.7]} 32... Nxh4 {[%clk 0:00:26.1]} 33. Rxh4 {[%clk
0:00:17.1]} 33... Rd8 {[%clk 0:00:26]} 34. g3 {[%clk 0:00:12.4]} 34... Kf7
{[%clk 0:00:25.9]} 35. Re4 {[%clk 0:00:11.6]} 35... Rd7 {[%clk 0:00:25.4]} 36.
Ke2 {[%clk 0:00:11.3]} 36... Ra7 {[%clk 0:00:24.2]} 37. Rd1 {[%clk 0:00:11.7]}
37... Kg6 {[%clk 0:00:23]} 38. Rd5 {[%clk 0:00:11.8]} 38... Ra8 {[%clk
0:00:22.6]} 39. Rxc5 {[%clk 0:00:11.9]} 39... bxc5 {[%clk 0:00:22.5]} 40. Rc4
{[%clk 0:00:12.3]} 40... Rc8 {[%clk 0:00:22.8]} 41. b4 {[%clk 0:00:11.9]} 41...
Re8+ {[%clk 0:00:23.1]} 42. Kd3 {[%clk 0:00:12]} 42... cxb4 {[%clk 0:00:24]} 43.
Bxb4 {[%clk 0:00:12.3]} 43... Re5 {[%clk 0:00:23]} 44. Rc5 {[%clk 0:00:11.5]}
44... Re6 {[%clk 0:00:22.8]} 45. h4 {[%clk 0:00:11.4]} 45... Rd6+ {[%clk
0:00:22.6]} 46. Ke2 {[%clk 0:00:11.3]} 46... Re6+ {[%clk 0:00:23]} 47. Kd3
{[%clk 0:00:11.6]} 47... Rd6+ {[%clk 0:00:23.3]} 48. Kc4 {[%clk 0:00:12.2]}
48... Rd1 {[%clk 0:00:23.2]} 49. h5+ {[%clk 0:00:12.1]} 49... Kh6 {[%clk
0:00:22.3]} 50. Kb5 {[%clk 0:00:12.7]} 50... Rc1 {[%clk 0:00:21.9]} 51. Rxc1
{[%clk 0:00:12.5]} 51... Kxh5 {[%clk 0:00:21.5]} 52. Rc4 {[%clk 0:00:12.3]}
52... Kg6 {[%clk 0:00:22.4]} 53. Rg4+ {[%clk 0:00:12.3]} 53... Kf7 {[%clk
0:00:23.3]} 54. Bc3 {[%clk 0:00:12.6]} 54... g5 {[%clk 0:00:24.2]} 55. Bxf6
{[%clk 0:00:11.8]} 55... Kg6 {[%clk 0:00:25.1]} 56. Rxg5+ {[%clk 0:00:12.4]}
56... Kxf6 {[%clk 0:00:25.7]} 57. Rg4 {[%clk 0:00:12.7]} 57... Kf5 {[%clk
0:00:26.1]} 58. Rf4+ {[%clk 0:00:13.6]} 58... Ke5 {[%clk 0:00:26.3]} 59. a4
{[%clk 0:00:14.5]} 59... Ke6 {[%clk 0:00:26.6]} 60. a5 {[%clk 0:00:15.4]} 60...
Kd7 {[%clk 0:00:27.4]} 61. a6 {[%clk 0:00:16.3]} 61... Kd6 {[%clk 0:00:28.3]}
62. a7 {[%clk 0:00:17.2]} 62... Kd5 {[%clk 0:00:29.2]} 63. a8=Q+ {[%clk
0:00:17.7]} 63... Ke5 {[%clk 0:00:30.1]} 64. Qe8+ {[%clk 0:00:17.6]} 64... Kd6
{[%clk 0:00:30.3]} 65. Qd8+ {[%clk 0:00:17.8]} 65... Ke5 {[%clk 0:00:30.3]} 66.
Qd4+ {[%clk 0:00:17.9]} 66... Ke6 {[%clk 0:00:30.6]} 67. Rf6+ {[%clk 0:00:18.8]}
67... Ke7 {[%clk 0:00:30.7]} 68. Qd6+ {[%clk 0:00:19.7]} 68... Ke8 {[%clk
0:00:30.6]} 69. Rf8# {[%clk 0:00:20.6]} 1-0

[Event "Early-Titled-Tuesday-Blitz-January-16-2024"]
[Site "Chess.com"]
[Date "2024.01.16"]
[Round "11"]
[White "stratacticos"]
[Black "abelmat"]
[Result "0-1"]
[WhiteElo "1962"]
[BlackElo "2072"]
[TimeControl "180+1"]
[EndTime "10:09:55 PST"]
[Termination "abelmat won on time"]

1. e4 {[%clk 0:02:57.3]} 1... e6 {[%clk 0:02:59.8]} 2. d4 {[%clk 0:02:56.4]}
2... d5 {[%clk 0:03:00.5]} 3. e5 {[%clk 0:02:55.8]} 3... c5 {[%clk 0:03:00.3]}
4. c3 {[%clk 0:02:55]} 4... Bd7 {[%clk 0:03:01]} 5. Nf3 {[%clk 0:02:54.4]} 5...
Qb6 {[%clk 0:03:01.9]} 6. a4 {[%clk 0:02:51.4]} 6... cxd4 {[%clk 0:03:00.6]} 7.
Nxd4 {[%clk 0:02:50.1]} 7... Nc6 {[%clk 0:03:00.9]} 8. Nxc6 {[%clk 0:02:47.1]}
8... bxc6 {[%clk 0:02:57.8]} 9. Be2 {[%clk 0:02:44.5]} 9... Ne7 {[%clk
0:02:57.2]} 10. O-O {[%clk 0:02:43.1]} 10... c5 {[%clk 0:02:56.6]} 11. b4 {[%clk
0:02:28.5]} 11... cxb4 {[%clk 0:02:52.8]} 12. cxb4 {[%clk 0:02:28.1]} 12... Qxb4
{[%clk 0:02:46.2]} 13. Ba3 {[%clk 0:02:27.1]} 13... Qb7 {[%clk 0:02:45.3]} 14.
Nc3 {[%clk 0:02:25.5]} 14... Ng6 {[%clk 0:02:44]} 15. Bxf8 {[%clk 0:02:14.2]}
15... Kxf8 {[%clk 0:02:17.3]} 16. f4 {[%clk 0:02:12.6]} 16... Ne7 {[%clk
0:02:16.2]} 17. f5 {[%clk 0:02:02.2]} 17... Nxf5 {[%clk 0:02:13]} 18. Rxf5
{[%clk 0:01:55]} 18... exf5 {[%clk 0:02:12.4]} 19. Nxd5 {[%clk 0:01:50.4]} 19...
Bc6 {[%clk 0:01:53.6]} 20. Nf4 {[%clk 0:01:44.9]} 20... Rd8 {[%clk 0:01:47.7]}
21. Qc1 {[%clk 0:01:35.7]} 21... Qb6+ {[%clk 0:01:34.7]} 22. Kh1 {[%clk
0:01:34.2]} 22... g6 {[%clk 0:01:24.4]} 23. e6 {[%clk 0:01:23.6]} 23... fxe6
{[%clk 0:01:04.7]} 24. Nxe6+ {[%clk 0:01:21.9]} 24... Ke7 {[%clk 0:01:00.2]} 25.
Bc4 {[%clk 0:01:16.2]} 25... Qf2 {[%clk 0:00:49.2]} 26. Qa3+ {[%clk 0:01:07.3]}
26... Rd6 {[%clk 0:00:41.6]} 27. Bf1 {[%clk 0:00:39.5]} 27... Kxe6 {[%clk
0:00:35.2]} 28. Qb3+ {[%clk 0:00:19.5]} 28... Bd5 {[%clk 0:00:33]} 29. Qc3
{[%clk 0:00:19.3]} 29... Rhd8 {[%clk 0:00:23.4]} 30. Re1+ {[%clk 0:00:17.5]}
30... Be4 {[%clk 0:00:23]} 31. Bc4+ {[%clk 0:00:14.1]} 31... Ke7 {[%clk
0:00:21.1]} 32. Qg7+ {[%clk 0:00:12.7]} 32... Ke8 {[%clk 0:00:17.2]} 33. Bb5+
{[%clk 0:00:11.7]} 33... R8d7 {[%clk 0:00:08.5]} 34. Qg8+ {[%clk 0:00:08.7]}
34... Ke7 {[%clk 0:00:07.8]} 35. Qg7+ {[%clk 0:00:08.4]} 35... Kd8 {[%clk
0:00:07.2]} 36. Qf8+ {[%clk 0:00:07.6]} 36... Kc7 {[%clk 0:00:07]} 37. Rc1+
{[%clk 0:00:07.4]} 37... Bc6 {[%clk 0:00:06.5]} 38. Bxc6 {[%clk 0:00:02]} 38...
Rd1+ {[%clk 0:00:06.1]} 0-1

[Event "Early-Titled-Tuesday-Blitz-January-16-2024"]
[Site "Chess.com"]
[Date "2024.01.16"]
[Round "11"]
[White "marina1994"]
[Black "alekroth65"]
[Result "0-1"]
[WhiteElo "2513"]
[BlackElo "2381"]
[TimeControl "180+1"]
[EndTime "10:09:57 PST"]
[Termination "alekroth65 won by resignation"]

1. e4 {[%clk 0:03:00.9]} 1... d6 {[%clk 0:02:58.5]} 2. d4 {[%clk 0:02:59.6]}
2... Nf6 {[%clk 0:02:58.5]} 3. Nc3 {[%clk 0:02:59]} 3... g6 {[%clk 0:02:58.9]}
4. Be3 {[%clk 0:02:54.9]} 4... c6 {[%clk 0:02:58.4]} 5. Nf3 {[%clk 0:02:47.7]}
5... Bg7 {[%clk 0:02:58.1]} 6. a4 {[%clk 0:02:43.1]} 6... O-O {[%clk 0:02:57]}
7. Qd2 {[%clk 0:02:39.9]} 7... Nbd7 {[%clk 0:02:53.5]} 8. h4 {[%clk 0:02:28.8]}
8... e5 {[%clk 0:02:51.4]} 9. dxe5 {[%clk 0:02:18.5]} 9... Nxe5 {[%clk
0:02:50.1]} 10. Nxe5 {[%clk 0:02:17.6]} 10... dxe5 {[%clk 0:02:51]} 11. Qxd8
{[%clk 0:01:59.7]} 11... Rxd8 {[%clk 0:02:51.9]} 12. f3 {[%clk 0:02:00]} 12...
Be6 {[%clk 0:02:46.2]} 13. Be2 {[%clk 0:01:57.6]} 13... Nd7 {[%clk 0:02:44.2]}
14. a5 {[%clk 0:01:50.3]} 14... Bf8 {[%clk 0:02:40.4]} 15. Kf2 {[%clk
0:01:45.5]} 15... Bc5 {[%clk 0:02:37.3]} 16. h5 {[%clk 0:01:45.1]} 16... b5
{[%clk 0:02:27.8]} 17. a6 {[%clk 0:01:16]} 17... Bxe3+ {[%clk 0:02:23.2]} 18.
Kxe3 {[%clk 0:01:15.6]} 18... Nc5 {[%clk 0:02:17.6]} 19. b4 {[%clk 0:01:15.3]}
19... Nd7 {[%clk 0:02:16.7]} 20. Nb1 {[%clk 0:01:10.5]} 20... Nb6 {[%clk
0:02:14.1]} 21. Nd2 {[%clk 0:01:10]} 21... Rd4 {[%clk 0:01:48.7]} 22. c3 {[%clk
0:01:09.5]} 22... Rd7 {[%clk 0:01:48]} 23. Rhc1 {[%clk 0:00:59.4]} 23... Rad8
{[%clk 0:01:46.3]} 24. Rc2 {[%clk 0:00:57.6]} 24... Kg7 {[%clk 0:01:30.2]} 25.
c4 {[%clk 0:00:39]} 25... bxc4 {[%clk 0:01:19]} 26. Nxc4 {[%clk 0:00:38.1]}
26... Nxc4+ {[%clk 0:01:16.3]} 27. Bxc4 {[%clk 0:00:38]} 27... Bxc4 {[%clk
0:01:14.8]} 28. Rxc4 {[%clk 0:00:38]} 28... Rd3+ {[%clk 0:01:14.5]} 29. Kf2
{[%clk 0:00:30.9]} 29... Rd2+ {[%clk 0:01:14.9]} 30. Kg3 {[%clk 0:00:31.3]}
30... R8d6 {[%clk 0:01:11.4]} 31. Ra5 {[%clk 0:00:19.7]} 31... f6 {[%clk
0:00:52.8]} 32. Rac5 {[%clk 0:00:18.9]} 32... Ra2 {[%clk 0:00:51.8]} 33. Rxc6
{[%clk 0:00:13.5]} 33... Rdd2 {[%clk 0:00:51]} 34. f4 {[%clk 0:00:09.3]} 34...
Rxg2+ {[%clk 0:00:47.1]} 35. Kf3 {[%clk 0:00:09.6]} 35... Rgf2+ {[%clk
0:00:46.1]} 36. Ke3 {[%clk 0:00:10]} 36... exf4+ {[%clk 0:00:44.2]} 37. Kd3
{[%clk 0:00:10]} 37... Rfd2+ {[%clk 0:00:42.1]} 38. Kc3 {[%clk 0:00:10]} 38...
f3 {[%clk 0:00:40.6]} 39. Rc7+ {[%clk 0:00:09.1]} 39... Kh6 {[%clk 0:00:39.2]}
40. hxg6 {[%clk 0:00:09.4]} 40... hxg6 {[%clk 0:00:37.9]} 41. e5 {[%clk
0:00:08.1]} 41... fxe5 {[%clk 0:00:35]} 42. Rf7 {[%clk 0:00:07.8]} 42... Rac2+
{[%clk 0:00:32.4]} 43. Kb3 {[%clk 0:00:07.2]} 43... Rxc4 {[%clk 0:00:33]} 44.
Kxc4 {[%clk 0:00:07.6]} 44... e4 {[%clk 0:00:32.8]} 45. Rxa7 {[%clk 0:00:07.3]}
45... f2 {[%clk 0:00:30.8]} 46. Rf7 {[%clk 0:00:07]} 46... e3 {[%clk 0:00:30.1]}
47. b5 {[%clk 0:00:07.2]} 47... e2 {[%clk 0:00:28.4]} 48. Rxf2 {[%clk
0:00:07.1]} 48... e1=Q {[%clk 0:00:27.4]} 49. Rxd2 {[%clk 0:00:07.3]} 49... Qxd2
{[%clk 0:00:26.5]} 50. Kc5 {[%clk 0:00:07.6]} 50... Qd8 {[%clk 0:00:23]} 51. b6
{[%clk 0:00:07.5]} 51... Qc8+ {[%clk 0:00:22]} 52. Kb5 {[%clk 0:00:07.7]} 52...
g5 {[%clk 0:00:19]} 53. b7 {[%clk 0:00:06.4]} 53... Qc7 {[%clk 0:00:18.6]} 0-1

[Event "Early-Titled-Tuesday-Blitz-January-16-2024"]
[Site "Chess.com"]
[Date "2024.01.16"]
[Round "11"]
[White "andrzej"]
[Black "jhedigm"]
[Result "1-0"]
[WhiteElo "2384"]
[BlackElo "2559"]
[TimeControl "180+1"]
[EndTime "10:10:00 PST"]
[Termination "andrzej won by resignation"]

1. e4 {[%clk 0:03:00.9]} 1... c5 {[%clk 0:02:51.4]} 2. Nf3 {[%clk 0:03:01.2]}
2... g6 {[%clk 0:02:49.9]} 3. d4 {[%clk 0:03:01.2]} 3... cxd4 {[%clk 0:02:50.8]}
4. Nxd4 {[%clk 0:03:02.1]} 4... Bg7 {[%clk 0:02:50.5]} 5. c4 {[%clk 0:03:02.5]}
5... d6 {[%clk 0:02:48.2]} 6. Nc3 {[%clk 0:02:58.5]} 6... Nc6 {[%clk 0:02:47.6]}
7. Be3 {[%clk 0:02:58.3]} 7... Nf6 {[%clk 0:02:47.4]} 8. Be2 {[%clk 0:02:57.7]}
8... O-O {[%clk 0:02:47.5]} 9. O-O {[%clk 0:02:57.7]} 9... Nd7 {[%clk
0:02:47.7]} 10. b3 {[%clk 0:02:37]} 10... Nc5 {[%clk 0:02:47.1]} 11. Rc1 {[%clk
0:02:17.4]} 11... Bd7 {[%clk 0:02:46.9]} 12. f3 {[%clk 0:02:00.6]} 12... Re8
{[%clk 0:02:41.5]} 13. Qd2 {[%clk 0:01:52.2]} 13... Qa5 {[%clk 0:02:32.8]} 14.
Rfd1 {[%clk 0:01:47.8]} 14... Rac8 {[%clk 0:02:26.9]} 15. Bf1 {[%clk 0:01:45]}
15... a6 {[%clk 0:01:59.5]} 16. Qf2 {[%clk 0:01:32.5]} 16... Nxd4 {[%clk
0:01:38.8]} 17. Bxd4 {[%clk 0:01:32.1]} 17... Bxd4 {[%clk 0:01:39.5]} 18. Qxd4
{[%clk 0:01:31.8]} 18... Ne6 {[%clk 0:01:39.3]} 19. Qd2 {[%clk 0:01:26.6]} 19...
Bc6 {[%clk 0:01:38.9]} 20. Kh1 {[%clk 0:01:23.8]} 20... Qe5 {[%clk 0:01:33.3]}
21. Re1 {[%clk 0:01:19.6]} 21... h5 {[%clk 0:01:30.8]} 22. Nd5 {[%clk
0:01:17.4]} 22... g5 {[%clk 0:01:26.2]} 23. Rcd1 {[%clk 0:01:11.1]} 23... b5
{[%clk 0:01:21.8]} 24. Nb4 {[%clk 0:00:53]} 24... Bb7 {[%clk 0:01:13.4]} 25. Nd3
{[%clk 0:00:53.3]} 25... Qg7 {[%clk 0:01:11]} 26. cxb5 {[%clk 0:00:53.2]} 26...
axb5 {[%clk 0:01:11.1]} 27. e5 {[%clk 0:00:53.1]} 27... Red8 {[%clk 0:01:03.4]}
28. Qb4 {[%clk 0:00:46.3]} 28... Bc6 {[%clk 0:01:01.6]} 29. Rc1 {[%clk
0:00:34.9]} 29... g4 {[%clk 0:01:00.9]} 30. f4 {[%clk 0:00:19.7]} 30... h4
{[%clk 0:01:00.2]} 31. Rxc6 {[%clk 0:00:14]} 31... Rxc6 {[%clk 0:00:59.8]} 32.
f5 {[%clk 0:00:13.4]} 32... Nc5 {[%clk 0:00:52.8]} 33. Nxc5 {[%clk 0:00:12.3]}
33... Rxc5 {[%clk 0:00:51.9]} 34. exd6 {[%clk 0:00:11.5]} 34... exd6 {[%clk
0:00:51.7]} 35. Qf4 {[%clk 0:00:09.4]} 35... Re5 {[%clk 0:00:45.5]} 36. Rd1
{[%clk 0:00:09.6]} 36... Rde8 {[%clk 0:00:44.9]} 37. f6 {[%clk 0:00:06.5]} 37...
Qg5 {[%clk 0:00:44.7]} 38. Qxg5+ {[%clk 0:00:06.1]} 38... Rxg5 {[%clk
0:00:45.6]} 39. Kg1 {[%clk 0:00:06.1]} 39... Re6 {[%clk 0:00:45]} 40. a4 {[%clk
0:00:05.8]} 40... bxa4 {[%clk 0:00:44.4]} 41. bxa4 {[%clk 0:00:06.7]} 41... Rxf6
{[%clk 0:00:43.6]} 42. Bb5 {[%clk 0:00:07.3]} 42... g3 {[%clk 0:00:42.7]} 43.
hxg3 {[%clk 0:00:07.2]} 43... hxg3 {[%clk 0:00:42.6]} 44. Rb1 {[%clk 0:00:05.9]}
44... Rc5 {[%clk 0:00:39.4]} 45. a5 {[%clk 0:00:06.1]} 45... Rc2 {[%clk
0:00:39.6]} 46. a6 {[%clk 0:00:05.3]} 46... Ra2 {[%clk 0:00:39.5]} 47. Rc1
{[%clk 0:00:04.7]} 47... Rff2 {[%clk 0:00:38.9]} 48. Bf1 {[%clk 0:00:05.1]}
48... d5 {[%clk 0:00:36.9]} 49. Rd1 {[%clk 0:00:05.1]} 49... d4 {[%clk 0:00:37]}
50. Rd3 {[%clk 0:00:03.3]} 50... Ra1 {[%clk 0:00:36.9]} 51. Rxg3+ {[%clk
0:00:03.4]} 1-0

[Event "Early-Titled-Tuesday-Blitz-January-16-2024"]
[Site "Chess.com"]
[Date "2024.01.16"]
[Round "11"]
[White "FranciscodelaF"]
[Black "supereagles1201"]
[Result "0-1"]
[WhiteElo "2238"]
[BlackElo "2358"]
[TimeControl "180+1"]
[EndTime "10:10:00 PST"]
[Termination "supereagles1201 won on time"]

1. d4 {[%clk 0:03:00.9]} 1... d5 {[%clk 0:02:59.4]} 2. Nf3 {[%clk 0:03:00.6]}
2... Nf6 {[%clk 0:02:58.8]} 3. Bf4 {[%clk 0:03:00]} 3... c5 {[%clk 0:02:58]} 4.
e3 {[%clk 0:02:58.8]} 4... Nc6 {[%clk 0:02:58]} 5. c3 {[%clk 0:02:56.6]} 5...
Qb6 {[%clk 0:02:56.2]} 6. Qb3 {[%clk 0:02:51.2]} 6... c4 {[%clk 0:02:56]} 7. Qc2
{[%clk 0:02:51.2]} 7... Bf5 {[%clk 0:02:55.3]} 8. Qc1 {[%clk 0:02:51.8]} 8... e6
{[%clk 0:02:54.8]} 9. Nh4 {[%clk 0:02:48.3]} 9... Be7 {[%clk 0:02:50.4]} 10.
Nxf5 {[%clk 0:02:47.4]} 10... exf5 {[%clk 0:02:51.3]} 11. Be2 {[%clk 0:02:43.4]}
11... O-O {[%clk 0:02:50.4]} 12. Nd2 {[%clk 0:02:42.7]} 12... Rfc8 {[%clk
0:02:41.9]} 13. O-O {[%clk 0:02:40.5]} 13... Qd8 {[%clk 0:02:40.3]} 14. h3
{[%clk 0:02:39.8]} 14... b5 {[%clk 0:02:39.5]} 15. Nf3 {[%clk 0:02:31.2]} 15...
a5 {[%clk 0:02:37.1]} 16. a3 {[%clk 0:02:20.7]} 16... b4 {[%clk 0:02:35.3]} 17.
axb4 {[%clk 0:02:20.1]} 17... axb4 {[%clk 0:02:36.2]} 18. cxb4 {[%clk
0:02:15.4]} 18... Nxb4 {[%clk 0:02:32.6]} 19. Qc3 {[%clk 0:02:13.3]} 19... Ne4
{[%clk 0:02:29.8]} 20. Qc1 {[%clk 0:02:02.8]} 20... Rxa1 {[%clk 0:02:29.2]} 21.
Qxa1 {[%clk 0:02:00.1]} 21... Ra8 {[%clk 0:02:29.7]} 22. Qc1 {[%clk 0:01:57.5]}
22... Qa5 {[%clk 0:02:23.5]} 23. Ne5 {[%clk 0:01:49.4]} 23... Qa4 {[%clk
0:02:14.5]} 24. f3 {[%clk 0:01:45.9]} 24... Nf6 {[%clk 0:02:09.1]} 25. Qc3
{[%clk 0:01:32.1]} 25... Qc2 {[%clk 0:01:58]} 26. Re1 {[%clk 0:01:22.8]} 26...
Qxc3 {[%clk 0:01:55.2]} 27. bxc3 {[%clk 0:01:21.6]} 27... Na2 {[%clk 0:01:47.4]}
28. Ra1 {[%clk 0:01:19]} 28... Ra3 {[%clk 0:01:47.2]} 29. Nc6 {[%clk 0:01:15.2]}
29... Bf8 {[%clk 0:01:46.7]} 30. Bg3 {[%clk 0:01:02.7]} 30... Nxc3 {[%clk
0:01:41.8]} 31. Rxa3 {[%clk 0:01:00.3]} 31... Nxe2+ {[%clk 0:01:36.5]} 32. Kf2
{[%clk 0:01:00.7]} 32... Bxa3 {[%clk 0:01:35.7]} 33. Kxe2 {[%clk 0:00:58.2]}
33... Kf8 {[%clk 0:01:30.4]} 34. Kd2 {[%clk 0:00:48.1]} 34... Ne8 {[%clk
0:01:19]} 35. Kc3 {[%clk 0:00:43.9]} 35... f6 {[%clk 0:01:08.6]} 36. Na7 {[%clk
0:00:39.5]} 36... Bd6 {[%clk 0:01:03.1]} 37. Be1 {[%clk 0:00:32.6]} 37... Kf7
{[%clk 0:01:01.2]} 38. Nb5 {[%clk 0:00:32.4]} 38... Ke6 {[%clk 0:00:59.4]} 39.
Kc2 {[%clk 0:00:29.2]} 39... Be7 {[%clk 0:00:57.7]} 40. Ba5 {[%clk 0:00:23.1]}
40... h5 {[%clk 0:00:48.6]} 41. g3 {[%clk 0:00:21.3]} 41... g5 {[%clk
0:00:47.8]} 42. Kd2 {[%clk 0:00:20.1]} 42... Kd7 {[%clk 0:00:47.1]} 43. Nc3
{[%clk 0:00:19.1]} 43... Kc6 {[%clk 0:00:46.6]} 44. Ke2 {[%clk 0:00:18.7]} 44...
Bd6 {[%clk 0:00:44]} 45. Bd8 {[%clk 0:00:17.2]} 45... Kd7 {[%clk 0:00:41.1]} 46.
Ba5 {[%clk 0:00:15.6]} 46... Ke6 {[%clk 0:00:40.9]} 47. Kf2 {[%clk 0:00:15.2]}
47... Nc7 {[%clk 0:00:38.9]} 48. Bb6 {[%clk 0:00:12.3]} 48... Na6 {[%clk
0:00:37.6]} 49. f4 {[%clk 0:00:07.3]} 49... Nb4 {[%clk 0:00:36.8]} 50. Ke2
{[%clk 0:00:05.3]} 50... Nd3 {[%clk 0:00:36.6]} 51. Ba7 {[%clk 0:00:04.2]} 51...
Bb4 {[%clk 0:00:30.8]} 52. Nb5 {[%clk 0:00:02.3]} 52... Be1 {[%clk 0:00:28.7]}
53. Bb8 {[%clk 0:00:01.2]} 53... Bxg3 {[%clk 0:00:26]} 54. Nc7+ {[%clk
0:00:01.1]} 54... Kf7 {[%clk 0:00:23.8]} 0-1